bitfinex-derivatives/quotes_BTCF0:USTF0_20250609
["timestamp","ask_amount","ask_price","bid_price","bid_amount"]
[1749429073641,0.2998451,105790.0,105780.0,1.30729721]
[1749429074350,0.2998451,105790.0,105780.0,1.10137225]
[1749429074645,0.0042566,105790.0,105780.0,1.72075236]
[1749429074834,0.0040566,105790.0,105780.0,1.61525674]
[1749429075039,0.0042566,105790.0,105780.0,2.2529516]
[1749429075239,0.8660786,105810.0,105800.0,0.1889306]
[1749429075440,0.43710733,105810.0,105800.0,0.99168738]
[1749429075747,0.43740733,105810.0,105800.0,1.07418738]
[1749429075946,0.43740733,105810.0,105800.0,1.16871874]
[1749429078251,0.10694,105810.0,105800.0,1.64052006]
[1749429078442,0.2956527,105810.0,105800.0,1.93793874]
[1749429078746,0.1892127,105810.0,105800.0,1.93793874]
[1749429079147,0.1892127,105810.0,105800.0,2.06106874]
[1749429079349,0.1892127,105810.0,105800.0,1.70026874]
[1749429079651,0.1932693,105810.0,105800.0,2.06106874]
[1749429080051,0.1932693,105810.0,105800.0,1.61710874]
[1749429081040,0.0043566,105810.0,105800.0,1.73409323]
[1749429081243,0.3899691,105830.0,105820.0,0.30799301]
[1749429081544,0.3901691,105830.0,105820.0,0.93243089]
[1749429081748,0.2835291,105830.0,105820.0,0.65163089]
[1749429081948,0.3901691,105830.0,105820.0,0.74614438]
[1749429082748,0.3901691,105830.0,105820.0,1.10694438]
[1749429082948,0.3901691,105830.0,105820.0,0.74614438]
[1749429083253,0.3961691,105830.0,105820.0,0.74614438]
[1749429083957,0.3961691,105830.0,105820.0,1.10694438]
[1749429085053,0.3489454,105830.0,105820.0,1.10694438]
[1749429085245,0.3017231,105830.0,105820.0,1.10694438]
[1749429085444,0.3015231,105830.0,105820.0,1.10694438]
[1749429085651,0.3017231,105830.0,105820.0,1.10694438]
[1749429086654,0.3017231,105830.0,105820.0,0.74614438]
[1749429086954,0.3444231,105830.0,105820.0,0.74614438]
[1749429087356,0.3842231,105830.0,105820.0,0.74614438]
[1749429087756,0.3842231,105830.0,105820.0,1.10694438]
[1749429090251,0.3842231,105830.0,105820.0,0.74614438]
[1749429090561,0.3842231,105830.0,105820.0,0.36026499]
[1749429090759,0.4252231,105830.0,105820.0,0.36026499]
[1749429091561,0.7860231,105830.0,105820.0,0.36026499]
[1749429091750,0.90300759,105830.0,105820.0,0.26026499]
[1749429091955,0.90300759,105830.0,105820.0,0.11386287]
[1749429092156,0.4252231,105830.0,105820.0,0.21386287]
[1749429093155,0.8689831,105830.0,105820.0,0.21386287]
[1749429093352,0.8689831,105830.0,105820.0,0.40275777]
[1749429094064,0.8689831,105830.0,105820.0,0.90995989]
[1749429094369,0.3185831,105830.0,105820.0,0.90995989]
[1749429094557,0.7880631,105830.0,105820.0,1.02694438]
[1749429094751,0.3443031,105830.0,105820.0,1.04175989]
[1749429095061,0.3481597,105830.0,105820.0,1.15874438]
[1749429095263,0.3483597,105830.0,105820.0,1.15874438]
[1749429097763,0.3483597,105830.0,105820.0,1.04175989]
[1749429097971,0.3483597,105830.0,105820.0,1.11844438]
[1749429098166,0.3935597,105830.0,105820.0,0.88494948]
[1749429098469,0.3935597,105830.0,105820.0,1.07384438]
[1749429099666,0.3935597,105830.0,105820.0,0.72106499]
[1749429102776,0.3935597,105830.0,105820.0,0.92602796]
[1749429103771,0.3935597,105830.0,105820.0,0.77962584]
[1749429103961,0.3935597,105830.0,105820.0,0.81741584]
[1749429104767,0.3935597,105830.0,105820.0,1.00631064]
[1749429104963,0.3935597,105830.0,105820.0,1.12329513]
[1749429105169,0.8372797,105830.0,105820.0,1.1107976]
[1749429105370,0.8370797,105830.0,105820.0,1.1555976]
[1749429105669,0.8372797,105830.0,105820.0,1.00873216]
[1749429105967,0.8372797,105830.0,105820.0,1.15562164]
[1749429106166,0.8372797,105830.0,105820.0,1.22897164]
[1749429106363,0.7918797,105830.0,105820.0,1.22897164]
[1749429106565,0.7920797,105830.0,105820.0,1.22897164]
[1749429106764,0.7920797,105830.0,105820.0,1.18397164]
[1749429106965,0.8359797,105830.0,105820.0,1.13917164]
[1749429107567,0.8359797,105830.0,105820.0,0.99228216]
[1749429108372,0.8359797,105830.0,105820.0,0.99253343]
[1749429108571,0.8299797,105830.0,105820.0,0.99253343]
[1749429109665,0.8299797,105830.0,105820.0,1.1974964]
[1749429110368,0.8299797,105830.0,105820.0,1.0974964]
[1749429111769,0.8299797,105830.0,105820.0,1.0518964]
[1749429112160,0.8299797,105830.0,105820.0,1.0945964]
[1749429112766,0.7860797,105830.0,105820.0,1.0945964]
[1749429112973,0.7860797,105830.0,105820.0,1.1945964]
[1749429114775,0.7433397,105830.0,105820.0,1.2379964]
[1749429114970,0.1105766,105830.0,105820.0,1.5348964]
[1749429115272,0.2996537,105830.0,105820.0,1.77361343]
[1749429115475,0.2994537,105830.0,105820.0,1.77361343]
[1749429115668,0.2996537,105830.0,105820.0,1.77361343]
[1749429115971,0.2996537,105830.0,105820.0,1.78332084]
[1749429116375,0.2996537,105830.0,105820.0,1.77361343]
[1749429117276,0.1931337,105830.0,105820.0,1.77361343]
[1749429118378,0.1929337,105830.0,105820.0,1.87361343]
[1749429118575,0.1931337,105830.0,105820.0,1.87361343]
[1749429119273,0.10644,105840.0,105830.0,0.2833085]
[1749429119478,0.1888612,105840.0,105830.0,1.55634645]
[1749429119775,0.0002,105840.0,105830.0,1.89673101]
[1749429119977,0.1890592,105840.0,105830.0,1.99122663]
[1749429120182,0.1890592,105840.0,105830.0,1.87424214]
[1749429120365,0.0002,105840.0,105830.0,1.87424214]
[1749429120570,0.0012,105840.0,105830.0,1.87424214]
[1749429121080,0.1900591,105840.0,105830.0,1.87424214]
[1749429121279,0.1900591,105840.0,105830.0,1.58107528]
[1749429121579,0.0022,105840.0,105830.0,1.65551334]
[1749429122169,0.0022,105840.0,105830.0,1.86089947]
[1749429122374,0.0022,105840.0,105830.0,1.89868947]
[1749429122980,0.1910592,105840.0,105830.0,1.89868947]
[1749429124077,0.1910592,105840.0,105830.0,1.55075338]
[1749429124276,0.3235592,105840.0,105830.0,1.50615338]
[1749429124780,0.3235592,105840.0,105830.0,1.14538787]
[1749429124972,0.3235592,105840.0,105830.0,0.84848787]
[1749429125167,0.3276158,105840.0,105830.0,0.9655186]
[1749429126175,0.3276158,105840.0,105830.0,1.3263186]
[1749429126376,0.3276158,105840.0,105830.0,0.9655186]
[1749429126578,0.3276158,105840.0,105830.0,0.77409605]
[1749429127277,0.3276158,105840.0,105830.0,0.68561368]
[1749429127574,0.3276158,105840.0,105830.0,0.8910745]
[1749429132890,0.7710958,105840.0,105830.0,0.23253689]
[1749429133184,0.7710958,105840.0,105830.0,0.62687932]
[1749429133689,1.1318958,105840.0,105830.0,0.43800242]
[1749429134080,1.1318958,105840.0,105830.0,0.58479794]
[1749429134282,1.1318958,105840.0,105830.0,0.61314794]
[1749429134483,1.1318958,105840.0,105830.0,0.40768241]
[1749429134683,1.1318958,105840.0,105830.0,0.61314794]
[1749429134890,1.1318958,105840.0,105830.0,0.56635242]
[1749429135995,1.1318958,105840.0,105830.0,0.46635242]
[1749429136194,1.1318958,105840.0,105830.0,0.56635242]
[1749429136689,1.1318958,105840.0,105830.0,0.46635242]
[1749429136890,1.1318958,105840.0,105830.0,0.56635242]
[1749429137089,1.1318958,105840.0,105830.0,0.46635242]
[1749429138296,1.24888029,105840.0,105830.0,0.36635242]
[1749429140190,1.1318958,105840.0,105830.0,0.46635242]
[1749429140393,1.1318958,105840.0,105830.0,0.36635242]
[1749429141590,1.1318958,105840.0,105830.0,0.36660369]
[1749429141791,1.1318958,105840.0,105830.0,0.46660369]
[1749429142089,1.1318558,105840.0,105830.0,0.46660369]
[1749429142887,0.8774958,105840.0,105830.0,0.58358818]
[1749429143390,1.2382958,105840.0,105830.0,0.58358818]
[1749429144195,1.2382958,105840.0,105830.0,0.46660369]
[1749429147397,1.2382958,105840.0,105830.0,0.65548059]
[1749429147900,1.2383958,105840.0,105830.0,0.65548059]
[1749429149795,1.2383958,105840.0,105830.0,0.46660369]
[1749429149994,1.2383958,105840.0,105830.0,0.65548059]
[1749429151202,0.1126766,105840.0,105830.0,1.13326508]
[1749429151500,0.3013356,105840.0,105830.0,1.11919955]
[1749429151700,0.297479,105840.0,105830.0,1.11919955]
[1749429151898,0.10862,105840.0,105830.0,1.41236641]
[1749429152088,0.297479,105840.0,105830.0,1.41236641]
[1749429152596,0.3015356,105840.0,105830.0,1.41236641]
[1749429153396,0.3013356,105840.0,105830.0,1.70926641]
[1749429153602,0.3015356,105840.0,105830.0,1.70926641]
[1749429153910,0.0063566,105840.0,105830.0,1.7188894]
[1749429154202,0.1952156,105840.0,105830.0,1.42572254]
[1749429154406,0.1950156,105840.0,105830.0,1.42572254]
[1749429154600,0.1952156,105840.0,105830.0,1.42572254]
[1749429154808,0.1952156,105840.0,105830.0,1.7188894]
[1749429156109,0.0063566,105840.0,105830.0,1.7188894]
[1749429156311,0.1952156,105840.0,105830.0,1.7188894]
[1749429156510,0.1952156,105840.0,105830.0,1.7960275]
[1749429157614,0.1951156,105840.0,105830.0,1.7960275]
[1749429159602,0.0062566,105840.0,105830.0,1.7960275]
[1749429161015,0.0062566,105840.0,105830.0,1.50286064]
[1749429161204,0.0062566,105840.0,105830.0,1.79612304]
[1749429162013,0.0062566,105840.0,105830.0,1.89612304]
[1749429162416,0.0060566,105840.0,105830.0,1.88650005]
[1749429162716,0.0062566,105840.0,105830.0,1.88650005]
[1749429164013,0.1931156,105840.0,105830.0,1.8980923]
[1749429164818,0.0042566,105840.0,105830.0,1.8980923]
[1749429166408,0.0042566,105840.0,105830.0,1.78110781]
[1749429166613,0.0042566,105840.0,105830.0,2.01507679]
[1749429166809,0.0042566,105840.0,105830.0,1.48784541]
[1749429167018,0.0040566,105840.0,105830.0,2.01491551]
[1749429167210,0.0042566,105840.0,105830.0,2.01491551]
[1749429167916,0.87210215,105860.0,105850.0,0.33982768]
[1749429168118,0.91290215,105860.0,105850.0,1.02302242]
[1749429168619,0.91290215,105860.0,105850.0,1.11750912]
[1749429168816,0.91290215,105860.0,105850.0,1.15910912]
[1749429169222,0.91390215,105860.0,105850.0,1.15910912]
[1749429170721,0.91490215,105860.0,105850.0,1.15910912]
[1749429171523,0.002,105860.0,105850.0,1.96337817]
[1749429171719,0.002,105860.0,105850.0,1.95880912]
[1749429171920,0.4793513,105870.0,105860.0,0.30580789]
[1749429171921,0.3849409,105870.0,105860.0,0.30580789]
[1749429172123,0.4301409,105870.0,105860.0,1.49644247]
[1749429172623,0.4303409,105870.0,105860.0,1.59091131]
[1749429172925,0.3240209,105870.0,105860.0,1.59091131]
[1749429173109,0.0002,105870.0,105860.0,2.03407131]
[1749429173314,0.0002,105870.0,105860.0,2.48615692]
[1749429173527,0.1887911,105880.0,105870.0,0.30578999]
[1749429173715,0.2316911,105880.0,105870.0,1.13589955]
[1749429173915,0.2316911,105880.0,105870.0,0.93099196]
[1749429174224,0.2316911,105880.0,105870.0,1.23052334]
[1749429174418,0.2316911,105880.0,105870.0,1.23077461]
[1749429176726,0.2316911,105880.0,105870.0,1.3477591]
[1749429176927,0.2318911,105880.0,105870.0,1.3923591]
[1749429177126,0.2318911,105880.0,105870.0,1.27537461]
[1749429177725,0.2318911,105880.0,105870.0,1.3923591]
[1749429177926,0.1889911,105880.0,105870.0,1.3923591]
[1749429178332,0.1887911,105880.0,105870.0,1.6892591]
[1749429178825,0.236052,105900.0,105870.0,1.5949016]
[1749429179029,0.3276423,105900.0,105890.0,0.45194149]
[1749429179332,0.3276423,105900.0,105890.0,0.57113057]
[1749429179526,0.3708423,105900.0,105890.0,0.77595076]
[1749429179833,0.3710423,105900.0,105890.0,0.97040176]
[1749429180132,0.643452,105900.0,105890.0,0.76558157]
[1749429180322,0.388612,105900.0,105890.0,0.76558157]
[1749429180632,0.388612,105900.0,105890.0,0.80798157]
[1749429180633,0.388812,105900.0,105890.0,0.80798157]
[1749429180828,0.15286,105900.0,105890.0,0.80798157]
[1749429181032,0.15486,105900.0,105890.0,1.12259447]
[1749429181332,0.11026,105900.0,105890.0,1.37051466]
[1749429181726,0.0003,105900.0,105890.0,1.78439915]
[1749429181925,0.0001,105900.0,105890.0,1.72558962]
[1749429182233,0.3867925,105910.0,105900.0,0.1887521]
[1749429182438,0.3867925,105910.0,105900.0,1.31312108]
[1749429182727,0.0449,105910.0,105900.0,1.83039927]
[1749429182933,0.8343526,105920.0,105900.0,2.1824476]
[1749429183139,0.4145752,105920.0,105910.0,0.31786737]
[1749429183429,0.5651352,105920.0,105910.0,0.55444807]
[1749429183828,0.5651352,105920.0,105910.0,0.6488634]
[1749429184224,0.5683352,105920.0,105910.0,0.50286463]
[1749429184424,0.5683352,105920.0,105910.0,0.38588014]
[1749429184826,0.5673352,105920.0,105910.0,0.50286463]
[1749429185142,0.5693352,105920.0,105910.0,0.50286463]
[1749429185327,0.0484,105920.0,105910.0,0.86366463]
[1749429185631,0.0042,105920.0,105910.0,1.5065634]
[1749429185951,0.2331093,105930.0,105910.0,1.70334532]
[1749429186128,0.1889166,105920.0,105910.0,1.57976692]
[1749429186329,0.1889166,105920.0,105910.0,2.32860688]
[1749429186530,0.1899166,105920.0,105910.0,2.12378669]
[1749429186728,0.1899166,105920.0,105910.0,2.12374669]
[1749429186929,0.1909166,105920.0,105910.0,2.12374669]
[1749429187325,0.1909166,105920.0,105910.0,1.97810673]
[1749429187529,0.1909166,105920.0,105910.0,1.93570673]
[1749429187731,0.2741166,105920.0,105910.0,1.83570673]
[1749429187933,0.2741166,105920.0,105910.0,1.47490673]
[1749429188439,0.2741166,105920.0,105910.0,1.03202673]
[1749429188631,0.2741166,105920.0,105910.0,1.47486673]
[1749429188934,0.0022,105920.0,105910.0,1.83566673]
[1749429189146,0.4290982,105930.0,105920.0,0.1887166]
[1749429189439,0.4290982,105930.0,105920.0,0.54935236]
[1749429189638,0.7900982,105930.0,105920.0,0.54935236]
[1749429189827,0.7900982,105930.0,105920.0,0.64375877]
[1749429190032,0.3231782,105930.0,105920.0,0.94065877]
[1749429193037,0.84436269,105930.0,105920.0,0.78027428]
[1749429193237,0.3665782,105930.0,105920.0,0.78027428]
[1749429193449,0.3665782,105930.0,105920.0,0.89725877]
[1749429193939,0.0871,105930.0,105920.0,0.93885877]
[1749429194135,0.2328988,105930.0,105920.0,1.03885877]
[1749429194439,0.70081582,105940.0,105920.0,1.19505556]
[1749429194631,0.0001,105940.0,105930.0,1.85262185]
[1749429194832,0.0001,105940.0,105930.0,1.95287312]
[1749429195034,0.0003,105940.0,105930.0,1.95287312]
[1749429195235,0.0003,105940.0,105930.0,2.43857953]
[1749429195434,0.8388381,105970.0,105950.0,0.36295466]
[1749429195642,0.99892259,105970.0,105960.0,0.1]
[1749429195829,0.18839413,105960.0,105950.0,0.53735027]
[1749429196032,0.80192279,105960.0,105950.0,0.63735027]
[1749429196237,0.67549413,105960.0,105950.0,0.63735027]
[1749429196550,0.67549413,105960.0,105950.0,0.84973226]
[1749429196934,0.78161413,105960.0,105950.0,0.84973226]
[1749429197130,0.89859862,105960.0,105950.0,0.54508457]
[1749429197641,0.89859862,105960.0,105950.0,0.44508457]
[1749429197948,1.01558311,105960.0,105950.0,0.44508457]
[1749429198134,0.99297462,105960.0,105950.0,0.44508457]
[1749429198534,1.34127862,105960.0,105950.0,0.44508457]
[1749429198935,1.34127862,105960.0,105950.0,0.14818457]
[1749429199546,1.34533522,105960.0,105950.0,0.14818457]
[1749429200336,1.3547264,105960.0,105950.0,0.14818457]
[1749429203947,1.3547264,105960.0,105950.0,0.17652457]
[1749429204146,1.3546464,105960.0,105950.0,0.17652457]
[1749429204343,1.3546464,105960.0,105950.0,0.27652457]
[1749429204540,1.3546464,105960.0,105950.0,0.17652457]
[1749429205741,1.23766191,105960.0,105950.0,0.17652457]
[1749429206641,1.23762191,105960.0,105950.0,0.17652457]
[1749429207447,1.23762191,105960.0,105950.0,0.17677584]
[1749429207953,1.3546064,105960.0,105950.0,0.17677584]
[1749429208845,0.92301089,105960.0,105950.0,0.17677584]
[1749429209058,0.1886808,105940.0,105930.0,0.01882462]
[1749429209349,1.57590529,105940.0,105930.0,0.01882462]
[1749429209535,1.63572738,105940.0,105930.0,0.1132043]
[1749429209741,1.7709248,105940.0,105930.0,0.01882462]
[1749429210139,1.7709248,105940.0,105930.0,0.02282462]
[1749429210846,2.15808738,105940.0,105930.0,0.01982462]
[1749429211352,2.15808738,105940.0,105930.0,0.02382462]
[1749429212452,2.24308738,105940.0,105930.0,0.01982462]
[1749429212756,2.24308738,105940.0,105930.0,0.02082462]
[1749429214649,1.60004738,105940.0,105930.0,0.02082462]
[1749429214949,2.14868738,105940.0,105930.0,0.02082462]
[1749429215554,2.15274398,105940.0,105930.0,0.02082462]
[1749429215739,1.71014398,105940.0,105930.0,0.02082462]
[1749429215951,2.03575949,105940.0,105930.0,0.21522212]
[1749429216147,2.03575949,105940.0,105930.0,0.40392052]
[1749429216349,2.03575949,105940.0,105930.0,0.56494649]
[1749429216544,0.63821949,105940.0,105930.0,0.68193098]
[1749429216746,1.18705949,105940.0,105930.0,0.82303098]
[1749429217045,1.18705949,105940.0,105930.0,0.85164497]
[1749429217046,0.74445949,105940.0,105930.0,0.85164497]
[1749429217446,0.74425949,105940.0,105930.0,0.70600501]
[1749429217653,0.74445949,105940.0,105930.0,1.06680501]
[1749429217849,0.4322166,105940.0,105930.0,0.70600501]
[1749429218051,0.7269372,105940.0,105930.0,1.21244497]
[1749429218551,0.7267372,105940.0,105930.0,1.06680501]
[1749429218744,0.7267372,105940.0,105930.0,1.10456501]
[1749429219654,0.7267372,105940.0,105930.0,1.40146501]
[1749429220055,0.7267372,105940.0,105930.0,1.04066501]
[1749429221147,0.7267372,105940.0,105930.0,0.92368052]
[1749429221343,0.7688372,105940.0,105930.0,0.92368052]
[1749429221548,0.7688372,105940.0,105930.0,1.0406406]
[1749429221863,0.7688372,105940.0,105930.0,1.04064067]
[1749429222068,0.7688372,105940.0,105930.0,0.92368052]
[1749429222358,0.7267372,105940.0,105930.0,1.04066501]
[1749429222746,0.1927372,105940.0,105930.0,1.18630497]
[1749429222947,0.2987772,105940.0,105930.0,1.18630497]
[1749429223351,0.0040566,105940.0,105930.0,1.54710497]
[1749429223554,0.1927372,105940.0,105930.0,1.66408946]
[1749429223760,0.1927372,105940.0,105930.0,1.6062852]
[1749429224660,0.1929372,105940.0,105930.0,1.6062852]
[1749429225049,0.1929372,105940.0,105930.0,1.2454852]
[1749429225251,0.30992169,105940.0,105930.0,1.12850071]
[1749429225451,0.67072169,105940.0,105930.0,1.12850071]
[1749429225652,0.71172169,105940.0,105930.0,1.08740071]
[1749429225862,1.15424169,105940.0,105930.0,1.23359901]
[1749429226358,1.15424169,105940.0,105930.0,1.08740071]
[1749429226568,1.15424169,105940.0,105930.0,1.04492343]
[1749429226853,1.15424169,105940.0,105930.0,1.08740071]
[1749429227055,1.15424169,105940.0,105930.0,0.89870231]
[1749429227249,1.15424169,105940.0,105930.0,0.80092239]
[1749429227250,1.19634169,105940.0,105930.0,0.80092239]
[1749429227450,1.19634169,105940.0,105930.0,0.5961022]
[1749429227645,1.19634169,105940.0,105930.0,0.71314891]
[1749429228058,1.19634169,105940.0,105930.0,0.56692883]
[1749429229562,1.19644169,105940.0,105930.0,0.56692883]
[1749429230759,1.29084169,105940.0,105930.0,0.47253133]
[1749429231459,1.29084169,105940.0,105930.0,0.17563133]
[1749429232751,0.7313372,105940.0,105930.0,0.17563133]
[1749429232957,1.30248169,105940.0,105930.0,0.17563133]
[1749429233264,1.30248169,105940.0,105930.0,0.27002883]
[1749429233449,1.30228169,105940.0,105930.0,0.27002883]
[1749429233648,1.30248169,105940.0,105930.0,0.27002883]
[1749429234167,1.1854972,105940.0,105930.0,0.27002883]
[1749429234362,0.6369372,105940.0,105930.0,0.4879006]
[1749429234664,1.1433972,105940.0,105930.0,0.6298006]
[1749429234865,1.1431972,105940.0,105930.0,0.6710006]
[1749429235253,1.1433972,105940.0,105930.0,0.6548406]
[1749429236862,0.7825972,105940.0,105930.0,0.50862052]
[1749429237062,1.1433972,105940.0,105930.0,0.71344071]
[1749429237268,1.1433972,105940.0,105930.0,0.65485282]
[1749429238166,0.5538372,105940.0,105930.0,0.65485282]
[1749429238360,0.1928372,105940.0,105930.0,0.77183731]
[1749429238566,1.1023572,105940.0,105930.0,0.77183731]
[1749429238865,1.1020572,105940.0,105930.0,0.65485282]
[1749429239056,1.1022572,105940.0,105930.0,0.65485282]
[1749429239255,0.7414572,105940.0,105930.0,0.65485282]
[1749429239465,1.1022572,105940.0,105930.0,0.65485282]
[1749429241067,1.21924169,105940.0,105930.0,0.38305442]
[1749429241254,1.30374169,105940.0,105930.0,0.38305442]
[1749429242968,1.30374169,105940.0,105930.0,0.57175282]
[1749429243270,0.5966372,105940.0,105930.0,0.61485282]
[1749429243477,1.1019772,105940.0,105930.0,0.73183731]
[1749429243658,1.1021772,105940.0,105930.0,0.77313731]
[1749429243958,1.1019772,105940.0,105930.0,0.75615282]
[1749429244159,1.1021772,105940.0,105930.0,0.75615282]
[1749429244360,1.1022772,105940.0,105930.0,0.96097301]
[1749429244556,1.1022772,105940.0,105930.0,0.81474071]
[1749429247664,0.7414372,105940.0,105930.0,0.9317252]
[1749429247871,0.2987972,105940.0,105930.0,0.72690501]
[1749429248171,0.2989972,105940.0,105930.0,0.72690501]
[1749429248369,0.1101166,105940.0,105930.0,0.72690501]
[1749429248566,0.2989972,105940.0,105930.0,0.72690501]
[1749429248771,0.1103166,105940.0,105930.0,1.02000613]
[1749429248965,0.2988972,105940.0,105930.0,1.02000613]
[1749429249165,0.2988972,105940.0,105930.0,1.75934613]
[1749429251578,0.2988972,105940.0,105930.0,1.46624501]
[1749429252175,0.2988972,105940.0,105930.0,1.67096173]
[1749429252872,0.41588169,105940.0,105930.0,0.88153884]
[1749429253178,0.85378169,105940.0,105930.0,0.88153884]
[1749429253363,0.91031302,105940.0,105930.0,0.83843884]
[1749429253772,0.91031302,105940.0,105930.0,0.73843884]
[1749429255074,0.4710166,105940.0,105930.0,0.89353952]
[1749429255267,0.6596972,105940.0,105930.0,1.01273952]
[1749429255468,0.6594972,105940.0,105930.0,0.69103831]
[1749429255679,0.6596972,105940.0,105930.0,0.69103831]
[1749429256479,0.6597972,105940.0,105930.0,0.65223831]
[1749429256679,0.81728169,105940.0,105930.0,0.42213991]
[1749429256975,0.85768169,105940.0,105930.0,0.38313991]
[1749429257481,0.85768169,105940.0,105930.0,0.28313991]
[1749429259276,0.85768169,105940.0,105930.0,0.34153884]
[1749429259277,0.85758169,105940.0,105930.0,0.34153884]
[1749429260375,0.85758169,105940.0,105930.0,0.58786719]
[1749429260376,0.85768169,105940.0,105930.0,0.58786719]
[1749429260882,0.85768169,105940.0,105930.0,0.44153884]
[1749429261066,0.7406972,105940.0,105930.0,0.44153884]
[1749429261270,1.1830572,105940.0,105930.0,0.48143884]
[1749429261781,1.1830572,105940.0,105930.0,0.38143884]
[1749429262279,1.1830572,105940.0,105930.0,0.52779899]
[1749429262481,1.1830572,105940.0,105930.0,0.32308227]
[1749429262680,1.1830572,105940.0,105930.0,0.42308227]
[1749429262876,1.1830572,105940.0,105930.0,0.32308227]
[1749429263779,1.1830572,105940.0,105930.0,0.61178067]
[1749429264580,1.1830572,105940.0,105930.0,0.52783814]
[1749429264771,1.1830572,105940.0,105930.0,0.62783814]
[1749429264968,1.1830572,105940.0,105930.0,0.48143884]
[1749429265178,1.1830572,105940.0,105930.0,0.6278351]
[1749429265681,1.1830572,105940.0,105930.0,0.8165335]
[1749429266290,0.6347372,105940.0,105930.0,0.8165335]
[1749429266581,1.1830172,105940.0,105930.0,0.67013724]
[1749429267178,1.1830172,105940.0,105930.0,0.61180833]
[1749429267682,1.1830172,105940.0,105930.0,0.57190833]
[1749429268500,1.1829172,105940.0,105930.0,0.57190833]
[1749429269584,1.1830172,105940.0,105930.0,0.57190833]
[1749429269787,1.1830172,105940.0,105930.0,0.61060833]
[1749429270482,1.1830172,105940.0,105930.0,0.66893724]
[1749429270984,1.1830172,105940.0,105930.0,0.38023884]
[1749429272185,1.1830172,105940.0,105930.0,0.5266746]
[1749429272386,1.1830172,105940.0,105930.0,0.32195788]
[1749429272584,1.1830172,105940.0,105930.0,0.42195788]
[1749429272785,1.1830172,105940.0,105930.0,0.61065618]
[1749429275583,1.1830172,105940.0,105930.0,0.51065618]
[1749429276285,0.8222172,105940.0,105930.0,0.51065618]
[1749429276588,1.1426172,105940.0,105930.0,0.61065618]
[1749429276789,1.1426172,105940.0,105930.0,0.64935618]
[1749429277890,0.7409171,105940.0,105930.0,1.12714067]
[1749429278192,0.2988771,105940.0,105930.0,1.31230603]
[1749429278485,0.2988771,105940.0,105930.0,0.95150603]
[1749429278880,0.2987771,105940.0,105930.0,1.31230603]
[1749429279684,0.2988771,105940.0,105930.0,1.31230603]
[1749429280885,0.2988771,105940.0,105930.0,0.95150603]
[1749429281589,0.6596771,105940.0,105930.0,0.83452154]
[1749429282295,0.6596771,105940.0,105930.0,0.74638246]
[1749429283092,0.6596771,105940.0,105930.0,0.84638246]
[1749429284094,0.6596771,105940.0,105930.0,0.80788246]
[1749429284290,0.85466159,105940.0,105930.0,0.80788266]
[1749429284496,1.1798371,105940.0,105930.0,0.92486715]
[1749429284695,0.5538371,105940.0,105930.0,0.92486715]
[1749429284992,1.1018371,105940.0,105930.0,0.92486715]
[1749429289890,1.1017371,105940.0,105930.0,0.92486715]
[1749429292788,1.1017371,105940.0,105930.0,0.80788266]
[1749429294096,0.7409371,105940.0,105930.0,0.80788266]
[1749429294395,1.1017371,105940.0,105930.0,0.80788266]
[1749429295092,1.1416371,105940.0,105930.0,0.80788266]
[1749429297400,1.1416371,105940.0,105930.0,0.76918266]
[1749429297593,1.29812159,105940.0,105930.0,0.73048266]
[1749429297994,0.85596159,105940.0,105930.0,0.75881266]
[1749429298191,1.1810171,105940.0,105930.0,0.75881266]
[1749429300001,1.1809171,105940.0,105930.0,0.55385062]
[1749429302400,1.1809171,105940.0,105930.0,0.75883098]
[1749429303305,0.6594171,105940.0,105930.0,0.87581547]
[1749429303496,0.7403771,105940.0,105930.0,1.31821547]
[1749429303795,0.7405771,105940.0,105930.0,1.11323511]
[1749429303996,0.2984171,105940.0,105930.0,1.11323511]
[1749429304202,0.2986171,105940.0,105930.0,1.11323511]
[1749429304698,0.1929371,105940.0,105930.0,1.31817692]
[1749429304908,0.6912249,105950.0,105940.0,0.1886807]
[1749429305097,1.2388649,105950.0,105940.0,0.52426519]
[1749429305398,1.2390649,105950.0,105940.0,0.52426519]
[1749429305598,1.2390649,105950.0,105940.0,0.61866269]
[1749429305903,0.8782649,105950.0,105940.0,0.61866269]
[1749429306206,0.7838859,105950.0,105940.0,0.91176381]
[1749429306508,0.2945988,105950.0,105940.0,1.56946381]
[1749429306805,0.2947988,105950.0,105940.0,1.57346381]
[1749429307102,0.1891188,105950.0,105940.0,1.57346381]
[1749429307302,0.2947988,105950.0,105940.0,1.57346381]
[1749429307500,0.2945988,105950.0,105940.0,1.57346381]
[1749429307702,0.2947988,105950.0,105940.0,1.57346381]
[1749429308505,0.2947988,105950.0,105940.0,2.05313381]
[1749429309002,0.2945988,105950.0,105940.0,2.05313381]
[1749429309206,0.2947988,105950.0,105940.0,2.05313381]
[1749429311008,0.1060216,105950.0,105940.0,2.15313381]
[1749429311201,0.0003416,105950.0,105940.0,2.15313381]
[1749429311508,0.0001416,105950.0,105940.0,2.34752581]
[1749429311807,0.0003416,105950.0,105940.0,2.05442469]
[1749429312205,0.1890045,105950.0,105940.0,2.05442469]
[1749429313608,0.1890045,105950.0,105940.0,2.258961]
[1749429313805,0.0003416,105950.0,105940.0,2.164569]
[1749429314200,0.1890045,105950.0,105940.0,2.164569]
[1749429314807,0.0003416,105950.0,105940.0,2.164569]
[1749429316207,4.812e-05,105950.0,105940.0,2.164569]
[1749429316403,0.2943397,105960.0,105950.0,0.1886629]
[1749429316610,0.2943397,105960.0,105950.0,1.0735756]
[1749429316811,0.2943397,105960.0,105950.0,0.86913133]
[1749429317005,0.2943397,105960.0,105950.0,1.10953107]
[1749429317213,0.2945397,105960.0,105950.0,1.10953107]
[1749429317509,0.30418801,105960.0,105950.0,0.99254658]
[1749429317709,0.34798801,105960.0,105950.0,0.99254658]
[1749429317913,0.8695725,105960.0,105950.0,0.35908368]
[1749429318102,0.8695725,105960.0,105950.0,0.54775817]
[1749429318301,0.8695725,105960.0,105950.0,0.60615104]
[1749429318502,0.5087725,105960.0,105950.0,0.60615104]
[1749429318803,0.5087725,105960.0,105950.0,0.60915104]
[1749429318804,0.8695725,105960.0,105950.0,0.60915104]
[1749429319004,0.5087725,105960.0,105950.0,0.61215104]
[1749429319208,0.39178801,105960.0,105950.0,0.61215104]
[1749429319412,0.75258801,105960.0,105950.0,0.61215104]
[1749429319913,0.39178801,105960.0,105950.0,0.61215104]
[1749429320115,0.75664461,105960.0,105950.0,0.61215104]
[1749429321105,0.39584461,105960.0,105950.0,0.61215104]
[1749429321306,0.75674461,105960.0,105950.0,0.61215104]
[1749429321806,0.8737291,105960.0,105950.0,0.56951212]
[1749429322004,0.8737291,105960.0,105950.0,0.61215094]
[1749429322205,0.8737291,105960.0,105950.0,0.75818884]
[1749429322406,0.8737291,105960.0,105950.0,0.55377323]
[1749429322806,0.75674461,105960.0,105950.0,0.55377323]
[1749429323009,0.75674461,105960.0,105950.0,0.36511043]
[1749429323208,0.8737291,105960.0,105950.0,0.39344043]
[1749429323515,0.8737291,105960.0,105950.0,0.58210323]
[1749429323911,0.75674461,105960.0,105950.0,0.58210323]
[1749429324507,0.75674461,105960.0,105950.0,0.39344043]